bitfinex/quotes_SOLUSD_20251013
["timestamp","ask_amount","ask_price","bid_price","bid_amount"]
[1760361563976,0.74944078,192.42,192.36,5.19855216]
[1760361563977,0.77982016,192.42,192.36,5.19855216]
[1760361564183,0.68,192.41,192.36,26.87559808]
[1760361564393,0.09982016,192.42,192.37,19.55705617]
[1760361564595,0.68,192.41,192.37,19.55705617]
[1760361564887,0.09982016,192.42,192.41,10.87647521]
[1760361565093,0.09982016,192.42,192.41,19.55705617]
[1760361565671,0.09982016,192.42,192.41,34.37429124]
[1760361566092,0.09982016,192.42,192.41,24.75429124]
[1760361567565,0.77982016,192.42,192.37,20.8]
[1760361567777,0.68,192.41,192.35,10.87647521]
[1760361567988,0.68,192.41,192.36,8.68058096]
[1760361568388,0.68,192.4,192.35,21.67713721]
[1760361568590,0.68,192.39,192.35,10.87647521]
[1760361569291,0.68,192.39,192.36,5.19858598]
[1760361569607,9.46040112,192.42,192.36,13.87916694]
[1760361569766,8.68058096,192.37,192.22,0.2]
[1760361569967,8.68058096,192.31,192.25,5.20152997]
[1760361570170,0.68,192.3,192.27,5.20101939]
[1760361570670,0.68,192.37,192.3,10.87647521]
[1760361570869,21.48,192.37,192.33,8.68058096]
[1760361571265,21.48,192.37,192.33,13.87992136]
[1760361571490,0.68,192.36,192.33,13.87992136]
[1760361572100,0.68,192.35,192.33,13.87992136]
[1760361572403,0.68,192.35,192.33,5.1993404]
[1760361572904,0.68,192.39,192.33,13.87992136]
[1760361573107,20.8,192.38,192.33,5.1993404]
[1760361573415,0.68,192.37,192.33,5.1993404]
[1760361573598,0.68,192.36,192.32,19.55705617]
[1760361574882,0.68,192.36,192.33,5.19939686]
[1760361575080,20.8,192.41,192.34,0.24]
[1760361575283,0.09982016,192.42,192.38,8.68058096]
[1760361575485,0.09982016,192.42,192.35,9.38]
[1760361575486,0.09982016,192.42,192.4,8.68058096]
[1760361575887,0.09982016,192.42,192.41,8.68058096]
[1760361576096,0.09982016,192.42,192.41,19.55705617]
[1760361576893,0.09982016,192.42,192.41,24.75429124]
[1760361577090,0.09982016,192.42,192.41,34.13429124]
[1760361577293,0.09982016,192.42,192.41,5.19723507]
[1760361578411,0.09982016,192.42,192.41,13.87781603]
[1760361578785,0.19847517,192.42,192.41,13.87781603]
[1760361580102,0.09865501,192.42,192.41,13.87781603]
[1760361581217,0.09865501,192.42,192.41,5.19723507]
[1760361581508,0.09865501,192.42,192.41,13.87781603]
[1760361581804,0.77865501,192.42,192.37,8.68058096]
[1760361582005,8.68058096,192.4,192.36,5.19854858]
[1760361582215,8.68058096,192.4,192.34,8.68058096]
[1760361582216,8.68058096,192.38,192.27,15.57805273]
[1760361582385,8.68058096,192.36,192.3,8.68058096]
[1760361582589,0.72,192.35,192.3,8.68058096]
[1760361582908,0.72,192.34,192.3,8.68058096]
[1760361583213,0.09865501,192.42,192.36,20.8]
[1760361583418,0.09865501,192.42,192.36,31.67647521]
[1760361583622,0.09865501,192.42,192.41,8.68058096]
[1760361583805,0.09865501,192.42,192.41,5.19723507]
[1760361584911,0.09865501,192.42,192.4,5.19746773]
[1760361585103,0.72,192.41,192.37,8.68058096]
[1760361585303,0.72,192.4,192.37,8.68058096]
[1760361586008,0.09865501,192.42,192.39,8.68058096]
[1760361586217,0.72,192.41,192.37,5.19831574]
[1760361586405,0.72,192.4,192.37,5.19831574]
[1760361587815,0.72,192.4,192.37,13.8788967]
[1760361588317,0.09865501,192.42,192.39,8.68058096]
[1760361588501,0.09865501,192.42,192.41,8.68058096]
[1760361588901,0.09865501,192.42,192.4,8.68058096]
[1760361589409,0.09865501,192.42,192.41,5.19723507]
[1760361592035,6.65044327,192.42,192.36,12.99598041]
[1760361592210,5.98044327,192.42,192.34,10.87647521]
[1760361592410,5.88178826,192.36,192.26,0.44]
[1760361592728,6.55178826,192.36,192.29,5.88178826]
[1760361592931,6.55178826,192.36,192.3,5.88178826]
[1760361593698,6.55178826,192.36,192.3,10.87647521]
[1760361594125,20.8,192.39,192.33,5.88178826]
[1760361594427,0.67,192.38,192.32,5.88178826]
[1760361594651,0.67,192.38,192.32,16.75826347]
[1760361595607,6.55178826,192.38,192.32,10.87647521]
[1760361595919,6.55178826,192.38,192.31,24.08156986]
[1760361596431,5.88178826,192.37,192.31,18.1997816]
[1760361596632,5.88178826,192.38,192.31,11.08172586]
[1760361596928,7.20151017,192.39,192.32,5.88178826]
[1760361598110,1.31972191,192.39,192.33,21.95766033]
[1760361598318,0.67,192.39,192.34,5.88178826]
[1760361598530,0.67,192.38,192.33,5.19939686]
[1760361598846,0.09585659,192.35,192.33,5.19939686]
[1760361600437,0.09585659,192.35,192.33,11.08118512]
[1760361601141,0.09585659,192.35,192.34,16.75826347]
[1760361601848,0.09585659,192.35,192.33,5.19939686]
[1760361603317,0.09585659,192.35,192.32,5.19966722]
[1760361603724,0.09585659,192.35,192.32,18.19883527]
[1760361604630,0.09585659,192.35,192.32,5.19966722]
[1760361604832,5.88178826,192.33,192.24,2.08241143]
[1760361605030,0.67,192.32,192.27,10.87647521]
[1760361605235,0.67,192.32,192.27,16.0774946]
[1760361605236,0.67,192.31,192.27,16.0774946]
[1760361606143,0.67,192.31,192.26,0.2]
[1760361606144,5.88178826,192.29,192.26,0.2]
[1760361606347,5.88178826,192.27,192.26,0.2]
[1760361606527,6.55178826,192.27,192.26,0.2]
[1760361607228,0.67,192.27,192.26,0.2]
[1760361607429,26.68178826,192.3,192.26,0.2]
[1760361607630,0.67,192.31,192.26,0.2]
[1760361607631,0.6499922,192.31,192.26,0.2]
[1760361607837,0.6499922,192.31,192.26,5.40109656]
[1760361607838,0.67,192.3,192.26,5.40109656]
[1760361608549,0.67,192.32,192.27,5.88178826]
[1760361608727,0.67,192.32,192.28,5.88178826]
[1760361608923,0.67,192.31,192.27,5.88178826]
[1760361609132,0.67,192.31,192.26,5.40109656]
[1760361609332,0.67,192.3,192.26,0.2]
[1760361609537,6.53178046,192.31,192.26,0.2]
[1760361609754,0.67,192.29,192.26,0.2]
[1760361609930,1.3199922,192.31,192.26,6.08178826]
[1760361610124,0.67,192.3,192.26,6.08178826]
[1760361610324,0.67,192.3,192.26,11.2829448]
[1760361610852,1.31989081,192.34,192.29,5.88178826]
[1760361611162,0.09585659,192.35,192.31,5.88178826]
[1760361611527,0.09585659,192.35,192.34,16.75826347]
[1760361612131,0.09585659,192.35,192.34,26.37826347]
[1760361612866,0.11186089,192.36,192.35,16.07533146]
[1760361613149,0.10876423,192.37,192.35,16.07533146]
[1760361613150,0.10876423,192.37,192.35,22.19711972]
[1760361613328,0.10876423,192.37,192.36,26.92178826]
[1760361613524,0.09888038,192.38,192.36,26.37826347]
[1760361613730,0.09888038,192.38,192.37,26.68178826]
[1760361614027,0.09888038,192.38,192.37,26.92178826]
[1760361614260,0.09888038,192.38,192.37,26.68178826]
[1760361614553,0.09888038,192.38,192.37,10.87647521]
[1760361614727,0.09888038,192.38,192.35,24.07778513]
[1760361615739,0.09888038,192.38,192.36,5.88178826]
[1760361616339,0.09888038,192.38,192.35,5.19885625]
[1760361616542,0.09888038,192.38,192.26,0.2]
[1760361616543,5.88178826,192.36,192.26,20.45647521]
[1760361616742,6.60178826,192.35,192.3,10.87647521]
[1760361616929,5.88178826,192.33,192.28,5.2007489]
[1760361617130,0.72,192.32,192.26,0.2]
[1760361617335,5.88178826,192.27,192.26,0.2]
[1760361617649,6.60178826,192.27,192.26,0.2]
[1760361618534,0.72,192.27,192.26,0.2]
[1760361618730,0.81673101,192.27,192.26,0.2]
[1760361618931,1.46685843,192.27,192.26,0.2]
[1760361619131,0.09673101,192.27,192.26,0.2]
[1760361619671,0.81673101,192.27,192.26,0.2]
[1760361620351,7.34864669,192.27,192.26,0.2]
[1760361620657,0.09673101,192.27,192.26,5.40128991]
[1760361620825,6.69851927,192.27,192.26,0.2]
[1760361621684,6.69851927,192.27,192.22,0.2]
[1760361621962,5.88178826,192.24,192.22,0.2]
[1760361622162,5.88178826,192.23,192.22,0.2]
[1760361622461,6.60178826,192.23,192.19,0.2]
[1760361622673,5.88178826,192.2,192.19,0.2]
[1760361623139,6.60178826,192.2,192.19,0.2]
[1760361623462,6.53208479,192.22,192.19,0.2]
[1760361623673,0.72,192.2,192.19,0.2]
[1760361623975,7.25215246,192.2,192.19,0.2]
[1760361624463,7.25215246,192.2,192.13,0.1]
[1760361624763,5.88178826,192.17,192.13,0.1]
[1760361625061,0.65049958,192.16,192.13,0.1]
[1760361625267,0.72,192.15,192.13,0.1]
[1760361625768,0.72,192.14,192.13,0.1]
[1760361625939,6.60178826,192.15,192.13,0.1]
[1760361626139,0.72,192.15,192.13,0.1]
[1760361626547,0.65049958,192.16,192.13,0.1]
[1760361626735,6.60178826,192.15,192.13,0.1]
[1760361627069,0.72,192.14,192.13,0.1]
[1760361627646,7.25228784,192.16,192.13,0.1]
[1760361627961,32.16699383,192.36,192.15,16.75826347]
[1760361627962,0.65039804,192.19,192.15,16.75826347]
[1760361628147,5.88178826,192.23,192.17,5.88178826]
[1760361628353,6.60178826,192.24,192.18,5.88178826]
[1760361628558,0.72,192.24,192.19,5.88178826]
[1760361628771,6.69851927,192.27,192.2,5.88178826]
[1760361628956,0.65016123,192.26,192.21,5.20264294]
[1760361629148,0.65016123,192.26,192.22,5.88178826]
[1760361629351,0.65016123,192.26,192.2,5.20290127]
[1760361629352,0.72,192.25,192.2,5.20290127]
[1760361629556,0.09673101,192.27,192.24,5.88178826]
[1760361629852,0.09673101,192.27,192.26,5.88178826]
[1760361630083,0.09673101,192.27,192.26,16.75826347]
[1760361630282,0.10646205,192.28,192.26,17.44826347]
[1760361630462,0.10646205,192.28,192.27,6.57178826]
[1760361630673,0.110513,192.29,192.27,17.44826347]
[1760361630978,0.10794789,192.32,192.28,22.64901237]
[1760361631182,0.09987346,192.33,192.28,22.64901237]
[1760361631183,0.09987346,192.33,192.32,31.67647521]
[1760361631383,0.09987346,192.33,192.29,10.87647521]
[1760361631547,0.09987346,192.33,192.3,5.88178826]
[1760361631979,0.09987346,192.33,192.31,5.88178826]
[1760361632212,0.09987346,192.33,192.32,5.88178826]
[1760361632477,0.09987346,192.33,192.32,17.44826347]
[1760361632852,0.11148665,192.34,192.32,17.44826347]
[1760361633083,0.11148665,192.34,192.33,32.04766033]
[1760361633399,0.64945186,192.47,192.38,10.87647521]
[1760361633686,0.64945186,192.47,192.42,5.88178826]
[1760361633858,0.72,192.48,192.44,5.88178826]
[1760361634052,2.7126209,192.54,192.38,11.56647521]
[1760361634053,5.88178826,192.49,192.38,11.56647521]
[1760361634258,6.60178826,192.48,192.41,5.88178826]
[1760361635051,0.64938438,192.49,192.44,5.88178826]
[1760361635252,0.72,192.48,192.43,16.75826347]
[1760361635448,0.72,192.48,192.43,10.87647521]
[1760361635883,6.53107145,192.52,192.45,5.88178826]
[1760361636091,0.72,192.53,192.47,5.88178826]
[1760361636400,1.36924946,192.53,192.47,5.88178826]
[1760361636686,1.36924946,192.53,192.42,18.1893774]
[1760361636687,5.88178826,192.49,192.43,10.87647521]
[1760361636893,5.88178826,192.49,192.43,16.75826347]
[1760361637070,27.40178826,192.5,192.44,5.88178826]
[1760361637269,21.52,192.5,192.45,5.88178826]
[1760361637470,0.72,192.49,192.43,16.07299412]
[1760361637671,0.72,192.49,192.44,5.88178826]
[1760361637895,0.72,192.49,192.45,5.88178826]
[1760361638666,0.11028712,192.46,192.45,5.88178826]
[1760361639569,0.11028712,192.46,192.45,6.57178826]
[1760361639970,0.09366756,192.47,192.45,17.44826347]
[1760361640170,0.09366756,192.47,192.46,6.57178826]
[1760361640595,0.09366756,192.47,192.46,5.88178826]
[1760361640782,0.09366756,192.47,192.44,10.87647521]
[1760361641096,6.69545582,192.47,192.42,10.87647521]
[1760361641301,0.09366756,192.47,192.43,5.88178826]
[1760361641598,0.09366756,192.47,192.43,11.07848316]
[1760361641963,0.09366756,192.47,192.43,5.1966949]
[1760361642391,0.09366756,192.47,192.39,10.07]
[1760361642392,0.71,192.46,192.39,12.9940462]
[1760361642567,6.59178826,192.46,192.37,16.07479095]
[1760361642773,6.59178826,192.46,192.4,5.88178826]
[1760361642974,6.59178826,192.46,192.37,36.87479095]
[1760361643174,5.88178826,192.43,192.37,5.88178826]
[1760361643600,20.89366756,192.47,192.41,5.88178826]
[1760361643794,0.09366756,192.47,192.43,5.88178826]
[1760361644098,6.59178826,192.46,192.4,10.87647521]
[1760361644300,6.59178826,192.46,192.4,16.75826347]
[1760361644483,5.88178826,192.42,192.36,5.88178826]
[1760361644682,5.289298,192.47,192.37,10.87647521]
[1760361644683,0.6495531,192.44,192.37,10.87647521]
[1760361644884,0.09366756,192.47,192.43,5.88178826]
[1760361645078,0.09366756,192.47,192.39,10.87647521]
[1760361645079,0.71,192.46,192.39,10.87647521]
[1760361645279,0.71,192.46,192.42,5.88178826]
[1760361645501,6.59178826,192.46,192.4,11.07929345]
[1760361645702,0.09366756,192.47,192.42,5.88178826]
[1760361645875,0.80366756,192.47,192.42,5.88178826]
[1760361646195,0.80366756,192.47,192.4,11.07929345]
[1760361646196,6.59178826,192.46,192.4,11.07929345]
[1760361646384,0.74311942,192.47,192.41,5.88178826]
[1760361646582,0.09366756,192.47,192.43,5.88178826]
[1760361646784,0.09366756,192.47,192.42,5.88178826]
[1760361646979,0.80366756,192.47,192.42,5.88178826]
[1760361647174,11.07852764,192.43,192.35,10.87647521]
[1760361647380,5.88178826,192.4,192.34,5.88178826]
[1760361647575,5.19645151,192.44,192.37,5.88178826]
[1760361647800,6.53130761,192.45,192.38,5.88178826]
[1760361647995,6.53130761,192.45,192.33,9.42]
[1760361647996,5.88178826,192.41,192.33,31.67647521]
[1760361648309,0.64951935,192.45,192.39,5.88178826]
[1760361648477,27.33130761,192.45,192.39,5.88178826]
[1760361648672,26.68178826,192.46,192.4,5.88178826]
[1760361648902,20.8,192.46,192.41,5.88178826]
[1760361649103,7.24130761,192.45,192.38,10.87647521]
[1760361649374,8.69697344,192.44,192.37,8.69697344]
[1760361649598,9.40697344,192.43,192.37,8.69697344]
[1760361649973,9.34659406,192.42,192.35,45.5722678]
[1760361650278,8.69697344,192.43,192.37,8.69697344]
[1760361650583,0.09366756,192.47,192.42,8.69697344]
[1760361650786,0.09366756,192.47,192.43,8.69697344]
[1760361650992,0.09366756,192.47,192.45,8.69697344]
[1760361651191,0.09366756,192.47,192.41,16.07355256]
[1760361651501,14.69641293,192.47,192.41,8.69697344]
[1760361651703,9.34645904,192.46,192.4,8.69697344]
[1760361651883,8.69697344,192.46,192.4,8.69697344]
[1760361652207,8.69697344,192.41,192.3,15.61320877]
[1760361652374,8.69697344,192.37,192.31,13.89691104]
[1760361652574,8.69697344,192.38,192.32,8.69697344]
[1760361652774,8.69697344,192.36,192.29,0.72]
[1760361652997,8.69697344,192.34,192.28,8.69697344]
[1760361653179,0.71,192.34,192.27,8.69697344]
[1760361653382,20.8,192.36,192.31,8.69697344]
[1760361653588,0.71,192.37,192.31,8.69697344]
[1760361654087,1.35972191,192.39,192.33,8.69697344]
[1760361654288,8.69697344,192.4,192.33,8.69697344]
[1760361654598,8.69697344,192.4,192.32,0.72]
[1760361654599,8.69697344,192.38,192.32,8.69697344]
[1760361655104,8.69697344,192.34,192.27,10.87647521]
[1760361655304,5.19912654,192.34,192.27,16.07745054]
[1760361655602,5.19912654,192.34,192.21,5.92264294]
[1760361655603,8.69697344,192.29,192.21,5.92264294]
[1760361655791,8.69697344,192.29,192.23,8.69697344]
[1760361656398,8.69697344,192.29,192.23,10.87647521]
[1760361656604,0.71,192.3,192.23,10.87647521]
[1760361656900,8.69697344,192.29,192.23,19.57344865]
[1760361657298,5.19946414,192.33,192.26,8.69697344]
[1760361657504,8.69697344,192.32,192.26,8.69697344]
[1760361657700,8.69697344,192.33,192.26,0.72]
[1760361657901,8.69697344,192.33,192.27,10.87647521]
[1760361658195,8.69697344,192.3,192.25,10.87647521]
[1760361658399,9.40697344,192.3,192.24,13.89880448]
[1760361658585,9.40697344,192.3,192.24,5.20183104]
[1760361658789,0.10099892,192.25,192.24,16.07830625]
[1760361659088,0.10099892,192.25,192.22,8.69697344]
[1760361659296,0.10099892,192.25,192.23,0.72]
[1760361659498,0.10099892,192.25,192.23,9.41697344]
[1760361660007,0.10099892,192.25,192.24,8.69697344]
[1760361660382,0.10099892,192.25,192.23,5.20210164]
[1760361660582,0.10099892,192.25,192.18,5.20341147]
[1760361660583,9.40697344,192.24,192.18,5.20341147]
[1760361660803,8.69697344,192.23,192.18,5.20341147]
[1760361661004,0.71,192.23,192.18,5.20341147]
[1760361661208,9.40697344,192.23,192.18,5.20341147]
[1760361661393,0.71,192.22,192.18,5.20341147]
[1760361661597,10.05720232,192.24,192.18,5.20341147]
[1760361662411,8.69697344,192.22,192.16,16.28042618]
[1760361662592,9.34726997,192.22,192.16,24.97739962]
[1760361662784,8.69697344,192.21,192.16,0.2]
[1760361662984,8.69697344,192.18,192.16,0.2]
[1760361663185,9.34743917,192.17,192.16,0.2]
[1760361663393,15.26116503,192.17,192.16,0.2]
[1760361663588,8.69697344,192.17,192.16,0.2]
[1760361663784,9.40697344,192.17,192.16,0.2]
[1760361664688,0.71,192.2,192.16,0.2]
[1760361664904,10.05737148,192.19,192.16,0.2]
[1760361665112,9.34737148,192.19,192.16,0.2]
[1760361665415,10.05737148,192.19,192.16,0.2]
[1760361666006,1.36039804,192.19,192.16,0.2]
[1760361666212,0.10099892,192.25,192.18,8.69697344]
[1760361666521,0.75119397,192.25,192.2,8.69697344]
[1760361666694,0.75119397,192.25,192.23,8.69697344]
[1760361666695,0.10099892,192.25,192.23,8.69697344]
[1760361666897,0.10099892,192.25,192.24,19.57344865]
[1760361667110,0.10099892,192.25,192.24,11.59647521]
[1760361667296,0.10099892,192.25,192.24,19.57344865]
[1760361667502,0.10099892,192.25,192.24,25.49527969]
[1760361667804,0.1017214,192.26,192.24,25.49527969]
[1760361667985,0.1017214,192.26,192.25,8.69697344]
[1760361668323,0.1017214,192.26,192.25,9.41697344]
[1760361668890,0.1017214,192.26,192.25,8.69697344]
[1760361669724,0.11084829,192.27,192.25,9.41697344]
[1760361669920,0.11084829,192.27,192.26,19.57344865]
[1760361670292,0.11084829,192.27,192.19,0.72]
[1760361670604,9.51782173,192.27,192.2,9.44]
[1760361670794,8.69697344,192.26,192.21,10.87647521]
[1760361670991,9.40697344,192.26,192.21,10.87647521]
[1760361671190,9.40697344,192.26,192.2,8.69697344]
[1760361671494,8.69697344,192.25,192.19,13.0078634]
[1760361671706,8.69697344,192.25,192.2,14.64291363]
[1760361671889,0.71,192.24,192.2,14.64291363]
[1760361672414,0.71,192.24,192.2,5.20291363]
[1760361672614,0.71,192.24,192.21,9.44]
[1760361672813,0.71,192.24,192.21,14.64239608]
[1760361673196,9.34713467,192.26,192.21,14.64239608]
[1760361673397,0.67,192.24,192.21,14.64239608]
[1760361673609,9.36697344,192.24,192.18,5.20345509]
[1760361673920,9.36697344,192.24,192.19,9.44]
[1760361674103,9.36697344,192.24,192.18,18.21209282]
[1760361674301,0.67,192.24,192.18,18.21209282]
[1760361674512,8.69697344,192.25,192.19,20.29647521]
[1760361674718,8.69697344,192.25,192.2,5.20291363]
[1760361675103,9.36697344,192.25,192.2,5.20291363]
[1760361675306,9.36697344,192.25,192.21,9.42]
[1760361675811,8.69697344,192.25,192.21,14.622526]
[1760361676017,9.36697344,192.25,192.21,14.622526]
[1760361676330,0.67,192.24,192.15,13.01039177]
[1760361676492,0.67,192.24,192.16,0.2]
[1760361676493,8.69697344,192.18,192.16,0.2]
[1760361676899,8.69697344,192.19,192.16,0.2]
[1760361677119,9.36697344,192.19,192.16,0.2]
[1760361677499,8.69697344,192.17,192.16,0.2]
[1760361678003,9.36697344,192.17,192.16,0.2]
[1760361678201,0.65039804,192.19,192.16,0.2]
[1760361678393,10.01737148,192.19,192.16,0.2]
[1760361678590,0.67,192.18,192.16,0.2]
[1760361678822,0.09531693,192.17,192.16,0.2]
[1760361679212,10.1127561,192.17,192.16,0.2]
[1760361679998,15.31648196,192.17,192.16,0.2]
[1760361680206,6.61950852,192.17,192.16,0.2]
[1760361680502,0.09531693,192.17,192.16,0.2]
[1760361681197,0.09531693,192.17,192.16,5.40399666]
[1760361681594,0.09531693,192.17,192.16,0.2]
[1760361681813,0.76531693,192.17,192.16,0.2]
[1760361682331,0.09531693,192.17,192.16,0.2]
[1760361683502,0.09531693,192.17,192.16,25.63744531]
[1760361683696,0.10839713,192.19,192.17,19.57344865]
[1760361683926,0.10839713,192.19,192.18,13.90042853]
[1760361684103,0.10904147,192.2,192.19,19.57344865]
[1760361684445,0.10465185,192.26,192.21,10.87647521]
[1760361684614,8.8072584,192.25,192.18,18.21209282]
[1760361684926,0.11028496,192.25,192.2,9.31697344]
[1760361685621,0.11028496,192.25,192.2,8.69697344]
[1760361685833,0.11028496,192.25,192.19,10.87647521]
[1760361686032,8.79094304,192.23,192.18,18.21209282]
[1760361686225,0.0939696,192.23,192.18,18.21209282]
[1760361686536,0.0939696,192.23,192.18,27.52906626]
[1760361686726,0.0939696,192.23,192.19,20.19344865]
[1760361686923,0.0939696,192.23,192.19,19.57344865]
[1760361687246,0.78359023,192.22,192.18,5.20345509]
[1760361687738,8.69697344,192.2,192.16,0.2]
[1760361687902,13.9006993,192.17,192.16,0.2]
[1760361688335,14.5706993,192.17,192.16,0.2]
[1760361689635,5.85320505,192.21,192.16,0.2]
[1760361689839,9.3473038,192.21,192.16,5.40391262]
[1760361690052,8.69697344,192.19,192.16,0.2]
[1760361690340,8.69697344,192.17,192.16,0.2]
[1760361690642,9.36697344,192.17,192.16,0.2]
[1760361691232,10.01743917,192.17,192.16,0.2]
[1760361692037,15.22116503,192.17,192.16,0.2]
[1760361692735,15.23116503,192.17,192.16,0.2]
[1760361693635,14.55116503,192.17,192.16,0.2]
[1760361693956,0.65046573,192.17,192.16,0.2]
[1760361694114,0.65043188,192.18,192.16,0.2]
[1760361694320,0.65033036,192.21,192.16,6.02392886]
[1760361694558,0.11359023,192.22,192.16,14.1009023]
[1760361694761,9.4608602,192.22,192.16,6.02392886]
[1760361694924,0.11359023,192.22,192.16,14.7209023]
[1760361695524,0.11359023,192.22,192.17,19.57344865]
[1760361696155,0.11359023,192.22,192.2,8.69697344]
[1760361696472,0.11359023,192.22,192.19,10.87647521]
[1760361696830,0.11359023,192.22,192.19,11.49647521]
[1760361697059,0.68,192.21,192.16,0.2]
[1760361697240,8.81056367,192.22,192.16,11.07647521]
[1760361697630,8.81056367,192.22,192.16,19.77344865]
[1760361697835,0.11359023,192.22,192.19,19.57344865]
[1760361698053,0.11359023,192.22,192.2,8.69697344]
[1760361698462,0.11359023,192.22,192.19,24.77636906]
[1760361698831,0.10230996,192.21,192.19,10.87647521]
[1760361699747,0.10230996,192.21,192.19,16.07965148]
[1760361699944,0.10230996,192.21,192.2,9.31697344]
[1760361700144,0.10230996,192.21,192.18,10.87647521]
[1760361700948,0.10230996,192.21,192.18,19.57344865]
[1760361701459,0.10230996,192.21,192.18,10.87647521]
[1760361702369,9.37697344,192.2,192.16,0.2]
[1760361702540,10.02733764,192.2,192.16,0.2]
[1760361703237,0.10230996,192.21,192.17,11.49647521]
[1760361703445,10.10961376,192.21,192.16,5.40390758]
[1760361703837,0.75264032,192.21,192.17,20.19344865]
[1760361704144,0.10230996,192.21,192.19,5.20318434]
[1760361704947,0.10230996,192.21,192.17,5.20367806]
[1760361704948,8.7992834,192.21,192.17,5.20367806]
[1760361705158,0.66,192.2,192.17,5.20367806]
[1760361705353,0.10230996,192.21,192.18,10.87647521]
[1760361706365,0.10230996,192.21,192.19,5.20318434]
[1760361706951,9.35697344,192.2,192.16,5.40378378]
[1760361707148,8.69697344,192.17,192.16,0.2]
[1760361707368,9.35697344,192.17,192.16,0.2]
[1760361707672,9.34737148,192.19,192.16,0.2]
[1760361707866,9.35697344,192.18,192.16,0.2]
[1760361708180,10.00740532,192.18,192.16,0.2]
[1760361708368,14.5606993,192.17,192.16,0.2]
[1760361708560,14.5606993,192.17,192.13,0.1]
[1760361708870,8.69697344,192.14,192.13,0.1]
[1760361709245,9.36697344,192.14,192.13,0.1]
[1760361709655,9.34747302,192.16,192.13,0.1]
[1760361709982,10.01747302,192.16,192.13,0.1]
[1760361710282,8.69697344,192.14,192.13,0.1]
[1760361710442,14.55207908,192.14,192.13,0.1]
[1760361710649,15.22207908,192.14,192.13,0.1]
[1760361711154,10.01754073,192.14,192.13,0.1]
[1760361711450,7.22273111,192.14,192.13,0.1]
[1760361711682,12.42726946,192.14,192.13,0.1]
[1760361712368,6.39818695,192.14,192.13,0.1]
[1760361712555,7.04382953,192.14,192.13,1e-08]
[1760361712878,5.85018093,192.14,192.13,1e-08]
[1760361713346,32.55234475,192.14,192.13,1e-08]
[1760361713552,11.75234475,192.14,192.13,1e-08]
[1760361714056,32.55234475,192.14,192.13,1e-08]
[1760361714268,11.75234475,192.14,192.13,1e-08]
[1760361714573,12.42234475,192.14,192.13,1e-08]
[1760361715155,33.22234475,192.14,192.13,1e-08]
[1760361715555,12.42234475,192.14,192.13,1e-08]
[1760361715968,33.22234475,192.14,192.13,1e-08]
[1760361716165,26.70216382,192.13,192.11,0.2]
[1760361716450,11.75288655,192.12,192.11,0.2]
[1760361716870,44.09936176,192.12,192.11,1e-08]
[1760361717053,20.8,192.09,192.08,0.2]
[1760361717371,26.70216382,192.09,192.08,0.2]
[1760361717583,27.37216382,192.09,192.08,0.2]
[1760361717955,32.34647521,192.09,192.08,0.2]
[1760361718156,38.24863903,192.09,192.08,0.2]
[1760361718470,43.4545321,192.09,192.08,0.2]
[1760361718980,43.54899635,192.09,192.08,0.2]
[1760361719162,33.31816372,192.09,192.08,0.2]
[1760361719657,32.64816372,192.09,192.08,0.2]
[1760361719854,27.44227065,192.09,192.08,0.2]
[1760361720460,0.09446425,192.09,192.08,0.89]
[1760361720658,6.64227065,192.09,192.08,0.2]
[1760361720858,27.44227065,192.09,192.08,0.2]
[1760361721171,7.31227065,192.09,192.08,0.2]
[1760361721381,33.31816372,192.09,192.08,0.2]
[1760361721574,12.51816372,192.09,192.08,0.2]
[1760361721785,12.51816372,192.09,192.06,0.2]
[1760361721953,5.90216382,192.07,192.06,0.2]
[1760361722153,6.5478064,192.07,192.06,0.2]
[1760361722365,6.5478064,192.07,191.98,5.40865245]
[1760361722366,20.8,192.04,191.98,0.2]
[1760361722663,0.64564258,192.03,191.98,0.2]
[1760361722974,5.90216382,191.99,191.98,0.2]
[1760361723171,5.90216382,191.99,191.98,0.89]
[1760361723351,5.90216382,191.99,191.98,6.09887592]
[1760361724676,5.90216382,192.0,191.98,6.09887592]
[1760361725050,6.5478064,192.03,191.99,0.69]
[1760361725253,0.64564258,192.03,192.0,0.69]
[1760361725450,5.90216382,192.04,192.0,0.69]
[1760361725676,0.64564258,192.03,192.0,0.69]